bitfinex-derivatives/quotes_BTCF0:USTF0_20250503
["timestamp","ask_amount","ask_price","bid_price","bid_amount"]
[1746231016259,0.3608,96873.0,96865.0,0.105236]
[1746231016457,0.2063493,96880.0,96871.0,0.3608]
[1746231016659,0.2063493,96880.0,96879.0,0.2063501]
[1746231016961,0.2063493,96880.0,96879.0,0.2463501]
[1746231017161,0.3243493,96880.0,96879.0,0.2463501]
[1746231017566,0.3243493,96880.0,96879.0,0.3071501]
[1746231018264,0.3273493,96880.0,96879.0,0.3081501]
[1746231019166,0.2093493,96880.0,96879.0,0.3081501]
[1746231019864,0.2442493,96880.0,96879.0,0.3091501]
[1746231020165,0.2432493,96880.0,96879.0,0.3091501]
[1746231020366,0.2422493,96880.0,96879.0,0.3091501]
[1746231020667,0.2422493,96880.0,96879.0,0.2789501]
[1746231020963,0.2412493,96880.0,96879.0,0.2789501]
[1746231021157,0.2735493,96880.0,96879.0,0.2789501]
[1746231021360,0.2715493,96880.0,96879.0,0.2779501]
[1746231021558,0.2735493,96880.0,96879.0,0.2789501]
[1746231023163,0.2725493,96880.0,96879.0,0.2779501]
[1746231023365,0.2745493,96880.0,96879.0,0.2789501]
[1746231023568,0.2755493,96880.0,96879.0,0.2789501]
[1746231024169,0.2725493,96880.0,96879.0,0.2779501]
[1746231024367,0.2755493,96880.0,96879.0,0.2789501]
[1746231024664,0.2725493,96880.0,96879.0,0.2779501]
[1746231024864,0.2755493,96880.0,96879.0,0.2789501]
[1746231025169,0.2755493,96880.0,96879.0,0.2483501]
[1746231026065,0.3935493,96880.0,96879.0,0.2483501]
[1746231030366,0.3612493,96880.0,96879.0,0.2483501]
[1746231031072,0.2432493,96880.0,96879.0,0.2483501]
[1746231031266,0.2432493,96880.0,96879.0,0.3115501]
[1746231032965,0.2432493,96880.0,96879.0,0.2783501]
[1746231034175,0.3612493,96880.0,96879.0,0.2783501]
[1746231035176,0.2432493,96880.0,96879.0,0.2783501]
[1746231035875,0.2432493,96880.0,96879.0,0.11481187]
[1746231036073,0.2432493,96880.0,96879.0,0.13481187]
[1746231036373,0.2432493,96880.0,96879.0,0.11481187]
[1746231041969,0.2432493,96880.0,96879.0,0.13481187]
[1746231058083,0.1313414,96898.0,96884.0,0.0515847]
[1746231058289,0.2900108,96890.0,96889.0,0.2063288]
[1746231058478,0.2900108,96890.0,96889.0,0.7071288]
[1746231058887,0.2900108,96890.0,96889.0,0.3463288]
[1746231059087,0.2900108,96890.0,96889.0,0.3784288]
[1746231059586,0.2950108,96890.0,96889.0,0.3794288]
[1746231060985,0.2950108,96890.0,96889.0,0.3804288]
[1746231061186,0.2990108,96890.0,96889.0,0.38545065]
[1746231064991,0.2990108,96890.0,96889.0,0.3804288]
[1746231074994,0.2990108,96890.0,96889.0,0.4108288]
[1746231085008,0.2990108,96890.0,96889.0,0.2387288]
[1746231085497,0.2990108,96890.0,96889.0,0.2687288]
[1746231093112,0.5090108,96890.0,96889.0,0.002]
[1746231093317,0.4790108,96890.0,96889.0,0.002]
[1746231094111,0.5970108,96890.0,96889.0,0.002]
[1746231094916,0.60215058,96890.0,96889.0,0.002]
[1746231096119,0.5970108,96890.0,96889.0,0.002]
[1746231098524,0.60198312,96890.0,96889.0,0.002]
[1746231099024,0.68092503,96890.0,96889.0,0.002]
[1746231099922,0.67595271,96890.0,96889.0,0.002]
[1746231100116,0.49595271,96890.0,96889.0,0.002]
[1746231100315,0.54595271,96890.0,96889.0,0.002]
[1746231101410,0.49595271,96890.0,96889.0,0.002]
[1746231101615,0.54595271,96890.0,96889.0,0.002]
[1746231105519,0.90675271,96890.0,96889.0,0.002]
[1746231106919,0.8278108,96890.0,96889.0,0.002]
[1746231108429,0.4985108,96890.0,96889.0,0.002]
[1746231108730,0.8593108,96890.0,96889.0,0.002]
[1746231109431,0.8593108,96890.0,96889.0,0.0324]
[1746231114037,0.4985108,96890.0,96889.0,0.0324]
[1746231114334,0.8593108,96890.0,96889.0,0.0324]
[1746231119638,0.8093108,96890.0,96889.0,0.1024]
[1746231120639,0.8493108,96890.0,96889.0,0.0324]
[1746231122240,0.7313108,96890.0,96889.0,0.0324]
[1746231130038,0.7313108,96890.0,96889.0,0.0304]
[1746231130343,0.2063331,96887.0,96886.0,0.0332]
[1746231130540,0.2063331,96887.0,96885.0,0.2063354]
[1746231130541,0.2063352,96886.0,96885.0,0.2063354]
[1746231130736,0.2786352,96886.0,96885.0,0.2063354]
[1746231132045,0.2786352,96886.0,96885.0,0.2073354]
[1746231132237,0.2846352,96886.0,96885.0,0.2083354]
[1746231133444,0.2846352,96886.0,96885.0,0.2408354]
[1746231139747,0.2846352,96886.0,96885.0,0.0345]
[1746231142638,0.2446352,96886.0,96885.0,0.0345]
[1746231148553,0.2746352,96886.0,96885.0,0.0345]
[1746231148851,0.2446352,96886.0,96885.0,0.0345]
[1746231149352,0.2746352,96886.0,96885.0,0.0345]
[1746231151653,0.2746352,96886.0,96885.0,0.240858]
[1746231152346,0.2446352,96886.0,96885.0,0.240858]
[1746231152556,0.32358666,96886.0,96885.0,0.240858]
[1746231153353,0.32358666,96886.0,96885.0,0.002]
[1746231156558,0.68438666,96886.0,96885.0,0.002]
[1746231165662,0.2063608,96874.0,96873.0,0.15723837]
[1746231165862,0.5971608,96874.0,96873.0,0.15723837]
[1746231166052,0.7151608,96874.0,96873.0,0.15723837]
[1746231166457,0.7778608,96874.0,96873.0,0.15723837]
[1746231166967,0.7798608,96874.0,96873.0,0.15823837]
[1746231167763,0.7808608,96874.0,96873.0,0.15923837]
[1746231168263,0.7818608,96874.0,96873.0,0.15923837]
[1746231170571,0.78893375,96874.0,96873.0,0.15923837]
[1746231172170,0.86788521,96874.0,96873.0,0.002]
[1746231173973,0.50708521,96874.0,96873.0,0.002]
[1746231174174,1.22868521,96874.0,96873.0,0.002]
[1746231174975,1.14973375,96874.0,96873.0,0.002]
[1746231177170,1.15734911,96874.0,96873.0,0.002]
[1746231182298,0.43574911,96874.0,96873.0,0.002]
[1746231182592,1.15734911,96874.0,96873.0,0.002]
[1746231183993,1.15027616,96874.0,96873.0,0.002]
[1746231184288,1.03227616,96874.0,96873.0,0.002]
[1746231184492,1.03921237,96874.0,96873.0,0.002]
[1746231185095,1.15721237,96874.0,96873.0,0.002]
[1746231185995,1.15027616,96874.0,96873.0,0.002]
[1746231186197,1.03227616,96874.0,96873.0,0.002]
[1746231189898,1.03227616,96874.0,96862.0,0.065]
[1746231189899,0.2063842,96863.0,96862.0,0.065]
[1746231190095,0.5871842,96863.0,96862.0,0.065]
[1746231191094,0.5881842,96863.0,96862.0,0.066]
[1746231191497,0.5881842,96863.0,96862.0,0.067]
[1746231192493,0.5681842,96863.0,96862.0,0.127]
[1746231193501,0.2073842,96863.0,96862.0,0.127]
[1746231193695,0.5681842,96863.0,96862.0,0.127]
[1746231194192,0.2073842,96863.0,96862.0,0.127]
[1746231194391,0.5681842,96863.0,96862.0,0.127]
[1746231196999,0.5681842,96863.0,96862.0,0.062]
[1746231197204,0.5681842,96863.0,96862.0,0.12]
[1746231197405,0.6001842,96863.0,96862.0,0.12]
[1746231197702,0.6101842,96863.0,96862.0,0.12]
[1746231198102,0.5781842,96863.0,96862.0,0.002]
[1746231200301,0.5681842,96863.0,96862.0,0.012]
[1746231200499,0.6081842,96863.0,96862.0,0.002]
[1746231201203,0.6383842,96863.0,96862.0,0.002]
[1746231208109,0.2775842,96863.0,96862.0,0.002]
[1746231208511,0.6383842,96863.0,96862.0,0.002]
[1746231208813,0.5983842,96863.0,96862.0,0.012]
[1746231211903,0.6294842,96863.0,96862.0,0.012]
[1746231213013,0.6294842,96863.0,96862.0,0.002]
[1746231214603,0.6794842,96863.0,96862.0,0.002]
[1746231222022,0.3186842,96863.0,96862.0,0.002]
[1746231222211,0.6794842,96863.0,96862.0,0.002]
[1746231226925,0.6294842,96863.0,96862.0,0.002]
[1746231231519,0.6294842,96863.0,96862.0,0.092]
[1746231231725,0.6294842,96863.0,96862.0,0.002]
[1746231234428,0.70843566,96863.0,96862.0,0.002]
[1746231235928,0.70843566,96863.0,96862.0,0.132]
[1746231238028,0.6294842,96863.0,96862.0,0.132]
[1746231243628,0.5983842,96863.0,96862.0,0.132]
[1746231243833,0.001,96863.0,96862.0,0.8024263]
[1746231244331,0.2073842,96863.0,96862.0,0.9204263]
[1746231244734,0.001,96863.0,96862.0,0.9821263]
[1746231245124,0.2073842,96863.0,96862.0,0.9821263]
[1746231253322,0.2073842,96863.0,96862.0,0.6213263]
[1746231256330,0.2073842,96863.0,96862.0,0.46187137]
[1746231256531,0.2073842,96863.0,96862.0,0.70187137]
[1746231257648,0.2073842,96863.0,96862.0,0.59863137]
[1746231257846,0.2073842,96863.0,96862.0,0.70187137]
[1746231261142,0.2404842,96863.0,96862.0,0.70187137]
[1746231262345,0.2404842,96863.0,96862.0,0.3343863]
[1746231262541,0.2713842,96863.0,96862.0,0.128]
[1746231262743,0.6621842,96863.0,96862.0,0.118]
[1746231263041,0.6321842,96863.0,96862.0,0.118]
[1746231263240,0.206397,96859.0,96858.0,0.2063927]
[1746231263651,0.270197,96859.0,96858.0,0.2263927]
[1746231265353,0.271197,96859.0,96858.0,0.2273927]
[1746231265550,0.272197,96859.0,96858.0,0.2283927]
[1746231269553,0.272197,96859.0,96858.0,0.022]
[1746231270956,0.272197,96859.0,96858.0,0.2283949]
[1746231271559,0.272197,96859.0,96858.0,0.022]
[1746231277055,0.282197,96859.0,96858.0,0.002]
[1746231277258,0.2064162,96848.0,96845.0,0.00103257]
[1746231277558,0.2064162,96848.0,96847.0,0.20796713]
[1746231278560,0.2084162,96848.0,96847.0,0.21296713]
[1746231281158,0.2084162,96848.0,96847.0,0.00654883]
[1746231281363,0.2684162,96848.0,96847.0,0.00654883]
[1746231282161,0.3864162,96848.0,96847.0,0.00654883]
[1746231282660,0.3874162,96848.0,96847.0,0.00254883]
[1746231289357,0.7482162,96848.0,96847.0,0.00254883]
[1746231289864,0.8127162,96848.0,96847.0,0.00254883]
[1746231305376,0.6579045,96848.0,96831.0,0.051613]
[1746231305676,0.2064481,96834.0,96833.0,0.2580595]
[1746231305878,0.2064481,96834.0,96833.0,0.2912595]
[1746231306068,0.2374481,96834.0,96833.0,0.2912595]
[1746231307071,0.2374481,96834.0,96833.0,0.4092595]
[1746231307872,0.2384481,96834.0,96833.0,0.4092595]
[1746231308177,0.2384481,96834.0,96833.0,0.3012595]
[1746231308670,0.2394481,96834.0,96833.0,0.3022595]
[1746231310479,0.2394481,96834.0,96833.0,0.2506476]
[1746231311468,0.2394481,96834.0,96833.0,0.0442]
[1746231311673,0.2494481,96834.0,96833.0,0.0342]
[1746231314067,0.2494481,96834.0,96833.0,0.2406481]
[1746231314271,0.3574481,96834.0,96833.0,0.3406481]
[1746231314574,0.3264481,96834.0,96833.0,0.3406481]
[1746231315278,0.2084481,96834.0,96833.0,0.4586481]
[1746231315875,0.002,96834.0,96833.0,0.4586481]
[1746231316180,0.002,96834.0,96833.0,0.5619201]
[1746231317082,0.208446,96834.0,96833.0,0.5619201]
[1746231324084,0.208446,96834.0,96833.0,0.4586481]
[1746231325084,0.208446,96834.0,96833.0,0.4889481]
[1746231327087,0.208446,96834.0,96833.0,0.5192481]
[1746231330382,0.241546,96834.0,96833.0,0.4889481]
[1746231330582,0.273546,96834.0,96833.0,0.4889481]
[1746231331089,0.273546,96834.0,96833.0,0.3709481]
[1746231332192,0.273546,96834.0,96833.0,0.3406481]
[1746231333086,0.273546,96834.0,96833.0,0.4586481]
[1746231333795,0.273546,96834.0,96833.0,0.4254481]
[1746231334292,0.273546,96834.0,96833.0,0.3074481]
[1746231338595,0.273546,96834.0,96833.0,0.2274481]
[1746231342001,0.273546,96834.0,96833.0,0.2074481]
[1746231342200,0.273546,96834.0,96833.0,0.2174481]
[1746231346800,0.273546,96834.0,96833.0,0.011]
[1746231347002,0.273546,96834.0,96833.0,0.2174481]
[1746231347202,0.391546,96834.0,96833.0,0.2174481]
[1746231348101,0.273546,96834.0,96833.0,0.2174481]
[1746231348596,0.283546,96834.0,96833.0,0.001]
[1746231349199,0.401546,96834.0,96833.0,0.001]
[1746231349899,0.504818,96834.0,96833.0,0.001]
[1746231350098,0.2064631,96826.0,96825.0,0.15723837]
[1746231350992,0.3000631,96826.0,96825.0,0.15723837]
[1746231351191,0.4190631,96826.0,96825.0,0.15723837]
[1746231352201,0.2064652,96825.0,96824.0,0.206467]
[1746231352599,0.2064695,96823.0,96822.0,0.26650393]
[1746231352801,0.2064695,96823.0,96822.0,0.28650393]
[1746231353900,0.2074695,96823.0,96822.0,0.28650393]
[1746231354201,0.2084695,96823.0,96822.0,0.28650393]
[1746231363503,0.2084695,96823.0,96822.0,0.31890393]
[1746231366305,0.2391695,96823.0,96822.0,0.31890393]
[1746231366506,0.2708695,96823.0,96822.0,0.31890393]
[1746231370304,0.2064759,96820.0,96819.0,0.00154903]
[1746231370609,0.2064759,96820.0,96819.0,0.20802703]
[1746231371106,0.3244759,96820.0,96819.0,0.00154903]
[1746231371308,0.3873759,96820.0,96819.0,0.00154903]
[1746231371509,0.3873759,96820.0,96819.0,0.20802703]
[1746231372011,0.3883759,96820.0,96819.0,0.20802703]
[1746231372411,0.3893759,96820.0,96819.0,0.20802703]
[1746231373805,0.3893759,96820.0,96819.0,0.00154903]
[1746231374813,0.3893759,96820.0,96819.0,0.20802703]
[1746231376011,0.3893759,96820.0,96819.0,0.00154903]
[1746231376514,0.2581049,96818.0,96815.0,0.13507509]
[1746231376714,0.5672844,96816.0,96815.0,0.36155949]
[1746231377209,0.5984844,96816.0,96815.0,0.36155949]
[1746231378016,0.5994844,96816.0,96815.0,0.30993839]
[1746231379617,0.6004844,96816.0,96815.0,0.30993839]
[1746231382310,0.2396844,96816.0,96815.0,0.30993839]
[1746231384018,0.2396844,96816.0,96815.0,0.25831729]
[1746231388322,0.3576844,96816.0,96815.0,0.25831729]
[1746231389122,0.2396844,96816.0,96815.0,0.25831729]
[1746231392414,0.2396844,96816.0,96815.0,0.90911729]
[1746231392824,0.2396844,96816.0,96815.0,0.69911729]
[1746231393023,0.0332,96816.0,96815.0,0.69911729]
[1746231393222,0.2396844,96816.0,96815.0,0.81711729]
[1746231395129,0.2396844,96816.0,96815.0,0.45631729]
[1746231396631,0.2396844,96816.0,96815.0,0.48711729]
[1746231397126,0.2396844,96816.0,96815.0,0.36911729]
[1746231398136,0.2396844,96816.0,96815.0,0.48711729]
[1746231398534,0.2396844,96816.0,96815.0,0.24983289]
[1746231399238,0.2704844,96816.0,96815.0,0.13183289]
[1746231399933,0.2704844,96816.0,96815.0,0.33831939]
[1746231400234,0.3884844,96816.0,96815.0,0.33831939]
[1746231401136,0.2704844,96816.0,96815.0,0.33831939]
[1746231406148,0.0332,96816.0,96815.0,0.33831939]
[1746231406448,0.07895146,96830.0,96829.0,0.2064567]
[1746231406635,0.07895146,96830.0,96829.0,1.44423269]
[1746231406837,0.10513534,96836.0,96835.0,0.2064439]
[1746231407044,0.10513534,96836.0,96835.0,0.4864439]
[1746231407245,0.10513534,96836.0,96835.0,0.6044439]
[1746231407650,0.10513534,96836.0,96835.0,0.6673439]
[1746231408249,0.2064402,96837.0,96836.0,0.2064417]
[1746231408550,0.2064402,96837.0,96836.0,0.4593417]
[1746231409240,0.2064402,96837.0,96836.0,0.5773417]
[1746231410643,0.2074402,96837.0,96836.0,0.5783417]
[1746231410947,0.2084402,96837.0,96836.0,0.5793417]
[1746231420156,0.002,96837.0,96836.0,0.5793417]
[1746231420460,0.1031997,96858.0,96857.0,0.2063927]
[1746231420649,0.1031997,96858.0,96857.0,0.3363927]
[1746231421151,0.1031997,96858.0,96857.0,0.4543927]
[1746231421455,0.3419057,96858.0,96857.0,0.4543927]
[1746231421859,0.3781057,96858.0,96857.0,0.4543927]
[1746231423151,0.3831057,96858.0,96857.0,0.3363927]
[1746231424052,0.3831057,96858.0,96857.0,0.4543927]
[1746231424457,0.0515924,96870.0,96857.0,0.248]
[1746231424656,0.3608,96873.0,96864.0,0.2063821]
[1746231424657,0.03,96868.0,96864.0,0.2063821]
[1746231424861,0.2063752,96868.0,96864.0,0.3663821]
[1746231425062,0.2063725,96869.0,96864.0,0.4843821]
[1746231425259,0.2063744,96868.0,96864.0,0.5451821]
[1746231425764,0.206377,96867.0,96864.0,0.5451821]
[1746231426057,0.0515935,96868.0,96864.0,0.5451821]
[1746231426364,0.0515942,96867.0,96864.0,0.5461821]
[1746231426863,0.0819942,96867.0,96864.0,0.5481821]
[1746231427665,0.2078799,96865.0,96864.0,0.5481821]
[1746231430865,0.2385799,96865.0,96864.0,0.5481821]
[1746231438169,0.2385799,96865.0,96864.0,0.4301821]
[1746231456090,0.2385799,96865.0,96864.0,0.2493821]
[1746231456278,0.3185799,96865.0,96864.0,0.003]
[1746231457072,0.4365799,96865.0,96864.0,0.003]
[1746231457479,0.4395799,96865.0,96864.0,0.002]
[1746231457879,0.4395799,96865.0,96864.0,0.2083821]
[1746231458076,0.4445799,96865.0,96864.0,0.2073821]
[1746231458382,0.4455799,96865.0,96864.0,0.2083821]
[1746231458993,0.4395799,96865.0,96864.0,0.2073821]
[1746231459186,0.4435799,96865.0,96864.0,0.2083821]
[1746231461177,0.4435799,96865.0,96864.0,0.2073821]
[1746231461377,0.4405799,96865.0,96864.0,0.2073821]
[1746231461579,0.4435799,96865.0,96864.0,0.2083821]
[1746231461778,0.3595799,96865.0,96864.0,0.2073821]
[1746231462180,0.2415799,96865.0,96864.0,0.2073821]
[1746231463188,0.3595799,96865.0,96864.0,0.2073821]
[1746231465089,0.2415799,96865.0,96864.0,0.2073821]
[1746231474097,0.2615799,96865.0,96864.0,0.2073821]
[1746231478598,0.2415799,96865.0,96864.0,0.2873821]
[1746231479298,0.0045,96865.0,96864.0,0.2873821]
[1746231479497,0.0045,96865.0,96864.0,0.3520821]
[1746231480097,0.0045,96865.0,96864.0,0.4700821]
[1746231480301,0.2108799,96865.0,96864.0,0.4700821]
[1746231486707,0.0045,96865.0,96864.0,0.4700821]
[1746231487002,0.0045,96865.0,96864.0,0.8308821]
[1746231488403,0.2579609,96871.0,96864.0,0.6245]
[1746231488601,0.2579609,96871.0,96870.0,0.2063693]
[1746231488804,0.2579609,96871.0,96870.0,0.3763693]
[1746231489198,0.2579609,96871.0,96870.0,0.4943693]
[1746231489398,0.2579609,96871.0,96870.0,0.5587693]
[1746231489597,0.2619609,96871.0,96870.0,0.5587693]
[1746231490601,0.2669609,96871.0,96870.0,0.5587693]
[1746231491203,0.2629609,96871.0,96870.0,0.5587693]
[1746231492109,0.2589609,96871.0,96870.0,0.5607693]
[1746231498010,0.001,96871.0,96870.0,0.5607693]
[1746231498217,0.2073672,96871.0,96870.0,0.5607693]
[1746231499209,0.2073672,96871.0,96870.0,0.4427693]
[1746231499708,0.2379672,96871.0,96870.0,0.4427693]
[1746231500114,0.2379672,96871.0,96870.0,0.5607693]
[1746231500306,0.2379672,96871.0,96870.0,0.4963693]
[1746231500505,0.6487672,96871.0,96870.0,0.3263693]
[1746231500709,0.5987672,96871.0,96870.0,0.3263693]
[1746231501114,0.7167672,96871.0,96870.0,0.2083693]
[1746231504019,0.3559672,96871.0,96870.0,0.2083693]
[1746231504225,0.2379672,96871.0,96870.0,0.3083693]
[1746231505022,0.2379672,96871.0,96870.0,0.3412693]
[1746231507726,0.2779672,96871.0,96870.0,0.002]
[1746231507927,0.2379672,96871.0,96870.0,0.2083693]
[1746231510027,0.2379672,96871.0,96870.0,0.2283693]
[1746231511224,0.5987672,96871.0,96870.0,0.2283693]
[1746231518636,0.0316,96871.0,96870.0,0.2283693]
[1746231518935,0.10661387,96882.0,96881.0,0.2063459]
[1746231518936,0.10506481,96882.0,96881.0,0.2063459]
[1746231519133,0.10506481,96882.0,96881.0,0.5343459]
[1746231519817,0.10506481,96882.0,96881.0,0.5953459]
[1746231520231,0.10506481,96882.0,96881.0,0.5963459]
[1746231520232,0.10806481,96882.0,96881.0,0.5963459]
[1746231521131,0.11006481,96882.0,96881.0,0.5963459]
[1746231522035,0.31640851,96882.0,96881.0,0.5963459]
[1746231522334,0.31640851,96882.0,96881.0,0.60570617]
[1746231522632,0.11006481,96882.0,96881.0,0.60570617]
[1746231522833,0.2113437,96882.0,96881.0,0.60570617]
[1746231532132,0.2113437,96882.0,96881.0,0.48770617]
[1746231533138,0.2113437,96882.0,96881.0,0.60570617]
[1746231536343,0.2113437,96882.0,96881.0,0.48770617]
[1746231541640,0.2742437,96882.0,96881.0,0.48770617]
[1746231542245,0.2742437,96882.0,96881.0,0.60570617]
[1746231543247,0.2742437,96882.0,96881.0,0.48770617]
[1746231543645,0.0679,96882.0,96881.0,0.48770617]
[1746231544032,0.2742437,96882.0,96881.0,0.60570617]
[1746231544645,0.0679,96882.0,96881.0,0.60570617]
[1746231545346,0.0679,96882.0,96881.0,0.48770617]
[1746231545946,0.0679,96882.0,96881.0,0.45770617]
[1746231546148,0.0679,96882.0,96881.0,0.57570617]
[1746231547146,0.0679,96882.0,96881.0,0.45770617]
[1746231558353,0.0679,96882.0,96881.0,0.48840617]
[1746231560157,0.0679,96882.0,96881.0,0.60640617]
[1746231560650,0.0679,96882.0,96881.0,0.76410125]
[1746231561252,0.0679,96882.0,96881.0,0.64610125]
[1746231562258,0.0679,96882.0,96881.0,0.76410125]
[1746231563061,0.0679,96882.0,96881.0,0.64610125]
[1746231565656,0.0679,96882.0,96881.0,0.61540125]
[1746231568559,0.0679,96882.0,96881.0,0.45770617]
[1746231574164,0.0679,96882.0,96881.0,0.57570617]
[1746231576169,0.0679,96882.0,96881.0,0.45770617]
[1746231602073,0.0679,96882.0,96881.0,0.57570617]
[1746231603891,0.28500627,96896.0,96889.0,0.051582]
[1746231604193,0.33658527,96896.0,96895.0,0.206316]
[1746231604387,0.33658527,96896.0,96895.0,0.356316]
[1746231604995,0.34158527,96896.0,96895.0,0.356316]
[1746231605492,0.2628977,96896.0,96895.0,0.356316]
[1746231605887,0.2958977,96896.0,96895.0,0.356316]
[1746231606192,0.3008977,96896.0,96895.0,0.357316]
[1746231607083,0.3313977,96896.0,96895.0,0.357316]
[1746231607283,0.3303977,96896.0,96895.0,0.357316]
[1746231609079,0.3635977,96896.0,96895.0,0.357316]
[1746231610707,0.3120187,96896.0,96895.0,0.357316]
[1746231613398,0.3120139,96896.0,96895.0,0.357316]
[1746231614999,0.3120139,96896.0,96895.0,0.151]
[1746231615191,0.5332179,96896.0,96895.0,0.031]
[1746231615391,0.6332179,96896.0,96895.0,0.001]
[1746231616697,1.037704,96896.0,96886.0,0.15763136]
[1746231616901,0.5671331,96887.0,96886.0,0.15763136]
[1746231617098,0.6271331,96887.0,96886.0,0.15763136]
[1746231617296,0.7303451,96887.0,96886.0,0.36396656]
[1746231617888,0.8245451,96887.0,96886.0,0.36396656]
[1746231618088,0.9425451,96887.0,96886.0,0.36496656]
[1746231618793,0.9425451,96887.0,96886.0,0.15763136]
[1746231619100,0.9475451,96887.0,96886.0,0.15863136]
[1746231619700,0.9475451,96887.0,96886.0,0.36496656]
[1746231620002,0.9475451,96887.0,96886.0,0.18239192]
[1746231627406,0.8443331,96887.0,96886.0,0.18239192]
[1746231627602,0.9475451,96887.0,96886.0,0.18239192]
[1746231630106,0.8443331,96887.0,96886.0,0.18239192]
[1746231636309,0.7263331,96887.0,96886.0,0.18239192]
[1746231637307,0.8443331,96887.0,96886.0,0.18239192]
[1746231639210,0.7263331,96887.0,96886.0,0.18239192]
[1746231640310,0.8443331,96887.0,96886.0,0.18239192]
[1746231641309,0.7263331,96887.0,96886.0,0.18239192]
[1746231644515,0.2063352,96886.0,96885.0,0.0323]
[1746231644811,0.2363352,96886.0,96885.0,0.0323]
[1746231645010,0.2995352,96886.0,96885.0,0.0323]
[1746231645911,0.3015352,96886.0,96885.0,0.0323]
[1746231646513,0.3055352,96886.0,96885.0,0.0333]
[1746231658937,0.6663352,96886.0,96885.0,0.0333]
[1746231660223,0.2063672,96871.0,96870.0,0.2579613]
[1746231660428,0.5671672,96871.0,96870.0,0.2579613]
[1746231661034,0.5771672,96871.0,96870.0,0.2579613]
[1746231661435,0.5771672,96871.0,96870.0,0.2911613]
[1746231661930,0.5771672,96871.0,96870.0,0.0332]
[1746231663038,0.5771672,96871.0,96870.0,0.0632]
[1746231663538,0.5771672,96871.0,96870.0,0.0947]
[1746231664142,0.5691672,96871.0,96870.0,0.0957]
[1746231664828,0.6191672,96871.0,96870.0,0.0335]
[1746231665434,0.6843672,96871.0,96870.0,0.0335]
[1746231669141,0.8023672,96871.0,96870.0,0.0335]
[1746231670439,0.7692672,96871.0,96870.0,0.002]
[1746231670641,0.8012672,96871.0,96870.0,0.002]
[1746231673240,0.6832672,96871.0,96870.0,0.002]
[1746231674145,0.8012672,96871.0,96870.0,0.002]
[1746231675142,0.6832672,96871.0,96870.0,0.002]
[1746231681153,0.8012672,96871.0,96870.0,0.002]
[1746231682145,0.6832672,96871.0,96870.0,0.002]
[1746231696061,0.6832672,96871.0,96870.0,0.12]
[1746231697661,0.6832672,96871.0,96870.0,0.1506]
[1746231698254,0.6832672,96871.0,96870.0,0.0326]
[1746231699161,0.6832672,96871.0,96870.0,0.1506]
[1746231703266,0.6832672,96871.0,96870.0,0.0326]
[1746231703457,0.6832672,96871.0,96870.0,0.0651]
[1746231704063,0.6832672,96871.0,96870.0,0.1831]
[1746231709565,0.6012672,96871.0,96870.0,0.2631]
[1746231709769,0.6212672,96871.0,96870.0,0.1831]
[1746231710173,0.6212672,96871.0,96870.0,0.0651]
[1746231711471,0.6212672,96871.0,96870.0,0.0345]
[1746231711967,0.6830672,96871.0,96870.0,0.0345]
[1746231714172,0.6830672,96871.0,96870.0,0.1525]
[1746231717158,0.6830672,96871.0,96870.0,0.0345]
[1746231719174,0.6830672,96871.0,96870.0,0.1525]
[1746231728776,0.6630672,96871.0,96870.0,0.1525]
[1746231729168,0.5691672,96871.0,96870.0,0.3788693]
[1746231730181,0.5691672,96871.0,96870.0,0.2212843]
[1746231731168,0.5691672,96871.0,96870.0,0.3392843]
[1746231732970,0.3628,96871.0,96870.0,0.44251629]
[1746231733376,0.3628,96871.0,96870.0,0.71291629]
[1746231733781,0.5691672,96871.0,96870.0,0.71291629]
[1746231735586,0.5691672,96871.0,96870.0,0.6096843]
[1746231735784,0.5691672,96871.0,96870.0,0.71291629]
[1746231736598,0.3628,96871.0,96870.0,0.71291629]
[1746231736800,0.002,96871.0,96870.0,0.71291629]
[1746231741102,0.002,96871.0,96870.0,0.6096843]
[1746231742399,0.002,96871.0,96870.0,1.0233843]
[1746231747611,0.2083672,96871.0,96870.0,0.9929843]
[1746231747808,0.2701672,96871.0,96870.0,0.7729843]
[1746231749003,0.2701672,96871.0,96870.0,0.5317]
[1746231749198,0.6509672,96871.0,96870.0,0.5317]
[1746231749411,0.6309672,96871.0,96870.0,0.5317]
[1746231749605,0.7009672,96871.0,96870.0,0.5317]
[1746231750209,0.7009672,96871.0,96870.0,0.4137]
[1746231754105,0.2063757,96867.0,96866.0,0.15744288]
[1746231754414,0.2263757,96867.0,96866.0,0.15744288]
[1746231754809,0.2063842,96863.0,96862.0,0.2063855]
[1746231755010,0.2163842,96863.0,96862.0,0.2063855]
[1746231755209,0.2163842,96863.0,96862.0,0.3243855]
[1746231755614,0.2705842,96863.0,96862.0,0.118]
[1746231756404,0.2705842,96863.0,96862.0,0.119]
[1746231756913,0.2735842,96863.0,96862.0,0.119]
[1746231757113,0.2735842,96863.0,96862.0,0.129]
[1746231757313,0.2705842,96863.0,96862.0,0.128]
[1746231757516,0.2735842,96863.0,96862.0,0.129]
[1746231757817,0.2755842,96863.0,96862.0,0.129]
[1746231758020,0.2755842,96863.0,96862.0,0.3353863]
[1746231760109,0.2735842,96863.0,96862.0,0.3353863]
[1746231760309,0.2745842,96863.0,96862.0,0.3353863]
[1746231760709,0.2735842,96863.0,96862.0,0.3353863]
[1746231760911,0.2725842,96863.0,96862.0,0.3353863]
[1746231762013,0.2725842,96863.0,96862.0,0.3343863]
[1746231762208,0.2725842,96863.0,96862.0,0.3353863]
[1746231763015,0.6333842,96863.0,96862.0,0.3353863]
[1746231763412,0.6343842,96863.0,96862.0,0.3353863]
[1746231764216,0.6333842,96863.0,96862.0,0.3353863]
[1746231765116,0.6313842,96863.0,96862.0,0.3343863]
[1746231766316,0.6333842,96863.0,96862.0,0.3353863]
[1746231769319,0.6323842,96863.0,96862.0,0.3653863]
[1746231769521,0.6323842,96863.0,96862.0,0.3663863]
[1746231771322,0.6313842,96863.0,96862.0,0.3663863]
[1746231771520,0.6323842,96863.0,96862.0,0.3663863]
[1746231773321,0.6323842,96863.0,96862.0,0.3653863]
[1746231773522,0.6323842,96863.0,96862.0,0.3663863]
[1746231774322,0.6313842,96863.0,96862.0,0.3663863]
[1746231774524,0.6323842,96863.0,96862.0,0.3663863]
[1746231774819,0.6313842,96863.0,96862.0,0.3663863]
[1746231775024,0.6323842,96863.0,96862.0,0.3663863]
[1746231779833,0.2715842,96863.0,96862.0,0.3663863]
[1746231780134,0.6323842,96863.0,96862.0,0.3663863]
[1746231783936,0.2715842,96863.0,96862.0,0.3663863]